bitfinex/quotes_SOLUSD_20251018
["timestamp","ask_amount","ask_price","bid_price","bid_amount"]
[1760779117381,7.66023992,186.4,186.34,19.50287002]
[1760779117579,0.7,186.37,186.34,5.36653429]
[1760779118263,7.66023992,186.38,186.34,5.36653429]
[1760779118469,8.37023992,186.38,186.34,5.36653429]
[1760779118982,7.66023992,186.38,186.33,5.3668223]
[1760779119193,0.71,186.37,186.33,5.3668223]
[1760779120479,7.66023992,186.38,186.33,5.3668223]
[1760779120665,8.37023992,186.37,186.33,5.3668223]
[1760779121563,7.66023992,186.37,186.33,5.3668223]
[1760779121765,7.66023992,186.35,186.32,5.36708016]
[1760779121961,8.37023992,186.34,186.32,5.36708016]
[1760779122161,22.88,186.38,186.32,5.36708016]
[1760779122362,7.66023992,186.37,186.32,5.36708016]
[1760779122562,8.37023992,186.37,186.32,6.05708016]
[1760779123281,8.37023992,186.39,186.33,0.69]
[1760779124075,0.71,186.39,186.34,0.53665342]
[1760779124273,7.66023992,186.4,186.35,0.69]
[1760779124476,8.37023992,186.4,186.36,5.36595836]
[1760779126787,8.37023992,186.39,186.35,5.36624631]
[1760779127462,0.71,186.39,186.35,5.36624631]
[1760779127782,0.71,186.39,186.35,6.05624631]
[1760779127977,8.37023992,186.41,186.36,0.69]
[1760779128384,7.66023992,186.41,186.37,0.69]
[1760779128567,7.66023992,186.41,186.35,18.78186208]
[1760779128888,7.66023992,186.4,186.35,18.78186208]
[1760779129074,7.66023992,186.4,186.35,19.47186208]
[1760779129279,7.66023992,186.4,186.36,0.69]
[1760779129789,8.37023992,186.4,186.36,0.69]
[1760779130372,8.37023992,186.4,186.35,18.78186208]
[1760779130373,7.66023992,186.37,186.32,13.41758473]
[1760779130577,7.66023992,186.37,186.33,0.69]
[1760779131170,7.66023992,186.37,186.32,13.41758473]
[1760779131370,7.66023992,186.37,186.33,0.69]
[1760779131773,7.66023992,186.35,186.3,5.36768652]
[1760779131972,7.66023992,186.35,186.3,6.05768652]
[1760779132191,8.37023992,186.36,186.31,0.69]
[1760779132390,8.37023992,186.36,186.32,0.69]
[1760779132592,7.66023992,186.36,186.32,0.69]
[1760779133096,8.37023992,186.36,186.32,0.69]
[1760779133282,8.37023992,186.35,186.3,5.36768652]
[1760779133483,8.37023992,186.34,186.29,5.36797466]
[1760779133684,7.66023992,186.35,186.29,20.01470877]
[1760779134078,8.37023992,186.36,186.29,27.67494869]
[1760779134277,8.37023992,186.36,186.3,0.69]
[1760779134473,7.66023992,186.37,186.31,0.53673984]
[1760779134683,7.66023992,186.37,186.32,0.69]
[1760779134884,30.54023992,186.38,186.33,0.69]
[1760779135193,0.71,186.37,186.33,0.69]
[1760779135573,8.37023992,186.37,186.33,5.36672911]
[1760779135774,7.66023992,186.36,186.33,5.36672911]
[1760779135974,8.37023992,186.36,186.33,5.36672911]
[1760779136272,22.88,186.38,186.29,21.08017657]
[1760779136273,8.37023992,186.35,186.32,5.3670847]
[1760779137083,7.66023992,186.34,186.32,5.3670847]
[1760779137280,7.66023992,186.36,186.32,5.3670847]
[1760779137481,7.66023992,186.37,186.33,0.69]
[1760779137686,7.66023992,186.37,186.33,6.05656859]
[1760779137886,7.66023992,186.37,186.33,5.36656859]
[1760779138081,7.66023992,186.37,186.34,0.69]
[1760779138275,7.66023992,186.37,186.35,0.69]
[1760779138481,8.37023992,186.39,186.35,0.69]
[1760779138676,8.37023992,186.39,186.33,5.36656859]
[1760779138677,7.66023992,186.39,186.33,5.36656859]
[1760779138995,8.37023992,186.38,186.33,5.36656859]
[1760779139191,8.37023992,186.38,186.32,18.7848862]
[1760779139394,8.37023992,186.38,186.32,19.4748862]
[1760779140779,8.37023992,186.38,186.33,0.69]
[1760779140989,7.66023992,186.38,186.32,18.7848862]
[1760779141181,7.66023992,186.4,186.34,0.69]
[1760779142294,0.71,186.42,186.34,0.69]
[1760779142501,7.66023992,186.43,186.36,7.66023992]
[1760779142686,7.66023992,186.43,186.37,1.22656704]
[1760779142888,7.66023992,186.43,186.38,0.69]
[1760779143087,8.37023992,186.44,186.39,1.22650946]
[1760779143287,8.37023992,186.44,186.4,0.69]
[1760779144584,8.37023992,186.44,186.41,5.36451907]
[1760779144585,22.88,186.42,186.41,5.36451907]
[1760779144784,22.88,186.42,186.39,5.36483923]
[1760779145203,0.72,186.41,186.39,5.36483923]
[1760779145781,0.72,186.41,186.37,0.53656704]
[1760779145782,5.7950964,186.4,186.36,13.41489154]
[1760779145981,5.0750964,186.4,186.36,13.41489154]
[1760779146176,5.0750964,186.4,186.36,14.09489154]
[1760779147511,5.0750964,186.4,186.37,5.36566865]
[1760779148303,5.7950964,186.41,186.37,5.36566865]
[1760779149884,5.7950964,186.41,186.37,0.69]
[1760779149885,5.0750964,186.41,186.37,0.69]
[1760779150085,5.7950964,186.41,186.37,0.69]
[1760779150803,0.72,186.4,186.35,0.69]
[1760779150982,0.72,186.4,186.36,5.36595836]
[1760779151383,0.72,186.4,186.36,6.05595836]
[1760779151589,2.71334664,186.4,186.36,6.05595836]
[1760779152016,1.99334664,186.4,186.36,6.05595836]
[1760779152800,1.99334664,186.41,186.36,6.05595836]
[1760779153004,2.71334664,186.41,186.36,6.05595836]
[1760779153203,2.71334664,186.41,186.36,5.36595836]
[1760779153501,1.99334664,186.42,186.38,5.36538255]
[1760779153702,2.71334664,186.42,186.38,5.36538255]
[1760779155006,1.99334664,186.41,186.38,5.36538255]
[1760779156593,1.99334664,186.41,186.38,6.05538255]
[1760779157386,0.72,186.47,186.39,2.68334664]
[1760779157607,2.71334664,186.47,186.4,0.53648068]
[1760779157913,1.99334664,186.46,186.4,1.22648068]
[1760779158119,1.99334664,186.43,186.38,18.77883892]
[1760779158413,1.99334664,186.41,186.38,6.05538255]
[1760779158587,1.99334664,186.42,186.38,5.36538255]
[1760779158787,1.99334664,186.42,186.39,6.05493931]
[1760779159298,1.99334664,186.4,186.37,5.36567044]
[1760779159690,1.99334664,186.4,186.37,6.05567044]
[1760779161098,1.99334664,186.41,186.37,5.36567044]
[1760779161298,1.99334664,186.41,186.37,6.05567044]
[1760779161610,1.99334664,186.42,186.38,0.69]
[1760779161996,1.99334664,186.41,186.32,73.55534781]
[1760779162198,1.99334664,186.41,186.3,0.14216157]
[1760779162199,1.99334664,186.33,186.3,0.69]
[1760779162708,1.99334664,186.32,186.27,5.36855102]
[1760779162907,4.41654095,186.35,186.27,0.69]
[1760779163113,1.99334664,186.3,186.26,6.05877727]
[1760779163491,0.72,186.32,186.27,0.69]
[1760779163697,1.99334664,186.29,186.26,5.36877727]
[1760779163897,1.99334664,186.28,186.25,6.05909044]
[1760779164098,1.99334664,186.29,186.25,6.05909044]
[1760779164407,1.99334664,186.3,186.26,0.69]
[1760779164606,1.99334664,186.3,186.25,18.79190923]
[1760779164607,1.99334664,186.31,186.27,0.69]
[1760779164816,1.99334664,186.32,186.27,0.69]
[1760779165315,1.99334664,186.3,186.28,6.05826283]
[1760779166817,1.99334664,186.3,186.26,0.69]
[1760779167113,1.99334664,186.27,186.24,0.69]
[1760779167290,1.99334664,186.27,186.25,0.69]
[1760779167487,1.99334664,186.27,186.22,13.9613609]
[1760779167792,1.99334664,186.28,186.23,0.69]
[1760779168296,1.99334664,186.28,186.23,19.48396444]
[1760779168496,1.99334664,186.28,186.24,0.69]
[1760779168694,1.99334664,186.3,186.25,0.53691275]
[1760779169010,22.88,186.34,186.25,0.53691275]
[1760779169011,1.99334664,186.32,186.26,0.69]
[1760779169210,1.99334664,186.32,186.26,0.97432314]
[1760779169408,1.99334664,186.32,186.27,0.69]
[1760779169600,1.99334664,186.31,186.27,0.69]
[1760779170006,1.99334664,186.31,186.26,11.16079835]
[1760779170209,1.99334664,186.31,186.27,0.69]
[1760779170410,1.99334664,186.32,186.28,5.36826283]
[1760779170618,1.99334664,186.32,186.29,0.69]
[1760779170916,1.99334664,186.32,186.28,5.36826283]
[1760779171094,1.99334664,186.32,186.29,0.69]
[1760779171917,1.99334664,186.31,186.28,5.36823327]
[1760779172112,1.99334664,186.29,186.26,0.69]
[1760779172291,1.99334664,186.28,186.25,5.36912751]
[1760779172496,1.99334664,186.28,186.26,0.69]
[1760779173408,1.99334664,186.28,186.26,6.05861993]
[1760779173798,1.99334664,186.29,186.26,6.05861993]
[1760779175118,1.99334664,186.28,186.26,6.05861993]
[1760779175996,1.99334664,186.29,186.27,0.69]
[1760779176397,1.99334664,186.29,186.26,5.36861993]
[1760779176619,1.99334664,186.28,186.26,5.36861993]
[1760779176918,1.99334664,186.29,186.26,6.05861993]
[1760779177411,1.99334664,186.28,186.26,6.05861993]
[1760779177609,1.99334664,186.29,186.26,6.05861993]
[1760779177910,1.99334664,186.29,186.26,5.36861993]
[1760779178115,1.99334664,186.29,186.27,0.72]
[1760779178415,1.99334664,186.29,186.27,6.08846587]
[1760779178916,1.99334664,186.29,186.27,5.36846587]
[1760779179423,1.99334664,186.29,186.27,6.08846587]
[1760779179605,1.99334664,186.29,186.25,5.36912751]
[1760779179810,1.99334664,186.29,186.26,0.72]
[1760779180715,1.99334664,186.29,186.27,5.36855102]
[1760779180922,1.99334664,186.28,186.27,5.36855102]
[1760779181311,2.66334664,186.28,186.24,62.72]
[1760779181609,1.99334664,186.26,186.24,62.72]
[1760779181811,1.99334664,186.26,186.25,0.72]
[1760779182205,1.99334664,186.26,186.24,62.0]
[1760779182421,1.99334664,186.26,186.24,68.08936314]
[1760779183622,1.99334664,186.25,186.24,0.72]
[1760779183810,1.99334664,186.25,186.23,5.36963531]
[1760779184011,1.99334664,186.26,186.24,0.72]
[1760779184221,0.67,186.3,186.24,0.72]
[1760779184419,1.99334664,186.28,186.24,0.72]
[1760779184628,1.99334664,186.28,186.24,1.25694158]
[1760779184925,1.99334664,186.28,186.25,0.72]
[1760779185122,1.99334664,186.28,186.26,0.72]
[1760779185713,1.99334664,186.28,186.26,6.08868297]
[1760779186928,0.67,186.32,186.27,0.72]
[1760779187109,1.99334664,186.29,186.27,0.72]
[1760779187510,1.99334664,186.29,186.26,5.36868297]
[1760779187716,1.99334664,186.29,186.26,6.08868297]
[1760779189434,1.99334664,186.29,186.25,75.4227143]
[1760779189435,1.99334664,186.29,186.28,5.36826283]
[1760779190035,1.99334664,186.29,186.28,6.08826283]
[1760779190534,1.99334664,186.3,186.28,6.08826283]
[1760779190724,1.99334664,186.31,186.29,0.72]
[1760779191632,23.55,186.34,186.29,0.72]
[1760779191633,1.99334664,186.3,186.29,6.08791965]
[1760779192213,1.99334664,186.31,186.29,6.08791965]
[1760779192835,1.99334664,186.31,186.29,5.36791965]
[1760779193037,1.99334664,186.31,186.3,0.72]
[1760779193416,1.99334664,186.31,186.3,6.08768652]
[1760779194138,1.99334664,186.34,186.3,81.50690283]
[1760779194344,1.99334664,186.33,186.31,0.72]
[1760779196244,23.55,186.36,186.28,0.72]
[1760779196245,1.99334664,186.32,186.28,0.72]
[1760779196442,12.24312333,186.39,186.28,0.72]
[1760779196443,1.99334664,186.3,186.29,0.72]
[1760779197143,1.99334664,186.3,186.28,5.36826283]
[1760779197337,1.99334664,186.29,186.28,5.36826283]
[1760779197523,1.99334664,186.29,186.28,6.08826283]
[1760779197725,1.99334664,186.3,186.28,6.08826283]
[1760779198328,1.99334664,186.31,186.29,0.72]
[1760779198532,1.99334664,186.31,186.3,0.72]
[1760779198724,1.99334664,186.31,186.29,0.72]
[1760779199137,0.67,186.34,186.29,0.72]
[1760779199435,1.99334664,186.32,186.3,0.72]
[1760779199744,0.67,186.42,186.32,11.01863678]
[1760779199937,0.67,186.44,186.36,1.99334664]
[1760779200141,1.99334664,186.43,186.37,0.72]
[1760779200335,1.99334664,186.43,186.38,5.36538255]
[1760779200535,1.99334664,186.42,186.39,0.72]
[1760779200841,0.67,186.44,186.38,5.36538255]
[1760779201049,1.99334664,186.4,186.37,6.08561142]
[1760779201244,1.99334664,186.41,186.38,0.72]
[1760779201454,1.99334664,186.42,186.39,0.72]
[1760779201634,1.99334664,186.43,186.4,0.72]
[1760779202323,1.99334664,186.43,186.4,6.08459734]
[1760779202820,22.88,186.47,186.41,0.72]
[1760779203048,1.99334664,186.44,186.41,0.72]
[1760779203219,22.88,186.45,186.42,0.72]
[1760779203220,24.87334664,186.45,186.42,0.72]
[1760779203423,1.99334664,186.45,186.43,0.72]
[1760779203620,1.99334664,186.46,186.41,0.5364519]
[1760779203850,0.38432314,186.54,186.42,2.71334664]
[1760779203851,0.1,186.54,186.42,2.71334664]
[1760779204055,1.99334664,186.48,186.43,1.25639435]
[1760779204223,1.99334664,186.48,186.44,0.72]
[1760779204623,1.99334664,186.45,186.42,5.36417973]
[1760779204838,1.99334664,186.43,186.38,0.69]
[1760779205041,1.99334664,186.48,186.38,0.69]
[1760779205042,16.23814249,186.54,186.39,1.36867103]
[1760779205232,1.99334664,186.51,186.44,1.99334664]
[1760779205439,3.11098177,186.51,186.45,1.22633681]
[1760779205646,3.11098177,186.51,186.46,0.69]
[1760779205853,0.67,186.53,186.47,0.69]
[1760779206151,0.1,186.54,186.47,0.69]
[1760779206327,0.1,186.54,186.48,0.53625053]
[1760779206533,0.1,186.54,186.5,5.36193029]
[1760779206749,0.1,186.54,186.51,1.22616428]
[1760779207047,3.21098177,186.54,186.51,0.69]
[1760779207551,0.1,186.54,186.51,0.69]
[1760779207751,3.21098177,186.54,186.51,0.69]
[1760779207930,3.21098177,186.54,186.51,6.05163867]
[1760779208454,3.11098177,186.53,186.51,6.05163867]
[1760779208639,0.1,186.54,186.51,6.05163867]
[1760779208831,0.1,186.54,186.51,5.36163867]
[1760779209027,0.1,186.54,186.52,1.19613553]
[1760779209440,0.1,186.54,186.53,14.93178012]
[1760779209829,0.1,186.54,186.53,20.29284804]
[1760779210034,3.21098177,186.54,186.52,0.53613553]
[1760779210233,3.11098177,186.53,186.51,6.02160608]
[1760779210645,3.11098177,186.53,186.51,0.66]
[1760779210843,3.21098177,186.54,186.51,6.02163555]
[1760779211044,3.21098177,186.54,186.52,0.66]
[1760779211252,0.1,186.54,186.52,0.66]
[1760779211638,0.1,186.54,186.53,0.66]
[1760779211834,0.1,186.54,186.53,6.02106792]
[1760779212972,0.1,186.54,186.53,20.29284804]
[1760779215261,0.1,186.54,186.53,17.18186627]
[1760779215442,2.31098177,186.57,186.53,5.36106792]
[1760779215647,3.11098177,186.55,186.53,6.02106792]
[1760779215835,0.1,186.58,186.53,6.02106792]
[1760779216036,3.11098177,186.55,186.52,5.36124871]
[1760779216246,3.11098177,186.54,186.52,6.02124871]
[1760779216567,3.11098177,186.57,186.53,0.66]
[1760779216853,3.11098177,186.56,186.52,5.36124871]
[1760779217061,3.11098177,186.55,186.52,5.36124871]
[1760779217353,3.11098177,186.55,186.52,6.02124871]
[1760779217759,0.1,186.58,186.54,3.11098177]
[1760779217968,0.1,186.58,186.56,5.36020583]
[1760779218270,0.1,186.58,186.57,1.19599185]
[1760779219055,0.1,186.58,186.57,4.30697362]
[1760779219240,0.1,186.58,186.57,0.66]
[1760779220064,0.1,186.58,186.57,6.01991852]
[1760779222760,0.1,186.58,186.57,68.01991852]
[1760779222958,0.1,186.58,186.57,13.66164859]
[1760779223156,0.1,186.58,186.57,24.82244694]
[1760779224448,0.1,186.58,186.57,17.18071687]
[1760779224757,0.1,186.58,186.57,24.82244694]
[1760779225179,0.1,186.58,186.57,17.18071687]
[1760779225848,0.1,186.58,186.57,16.52071687]
[1760779226046,0.1,186.58,186.57,5.35991852]
[1760779226867,0.1,186.58,186.57,6.01991852]
[1760779227270,0.1,186.58,186.57,13.66164859]
[1760779228547,0.1,186.58,186.57,75.66164859]
[1760779228947,0.1,186.58,186.57,47.70244694]
[1760779229269,0.1,186.58,186.56,62.53602058]
[1760779229270,0.1,186.58,186.55,67.36022335]
[1760779229462,7.64173007,186.56,186.52,5.36135535]
[1760779229663,7.64173007,186.53,186.52,5.36135535]
[1760779230049,0.1,186.58,186.52,6.02135535]
[1760779230249,7.64173007,186.56,186.52,6.02135535]
[1760779230667,8.35173007,186.56,186.52,5.36135535]
[1760779231074,7.64173007,186.55,186.52,5.36135535]
[1760779231651,0.1,186.58,186.52,5.36135535]
[1760779231975,7.64173007,186.56,186.52,5.36135535]
[1760779232473,8.35173007,186.55,186.52,5.36135535]
[1760779232656,7.64173007,186.55,186.52,5.36135535]
[1760779232970,7.64173007,186.56,186.52,5.36135535]
[1760779233675,8.35173007,186.55,186.51,18.7656627]
[1760779233872,7.64173007,186.54,186.51,18.7656627]
[1760779234955,8.35173007,186.53,186.51,5.3616428]
[1760779235462,7.64173007,186.53,186.51,5.3616428]
[1760779235659,7.64173007,186.52,186.49,5.36221781]
[1760779235972,7.64173007,186.54,186.49,18.76776234]
[1760779236156,7.64173007,186.54,186.5,0.66]
[1760779236663,7.64173007,186.53,186.49,18.76776234]
[1760779236865,7.64173007,186.53,186.49,19.42776234]
[1760779237055,7.64173007,186.53,186.49,18.76776234]
[1760779237251,7.64173007,186.53,186.49,19.42776234]
[1760779237475,7.64173007,186.52,186.49,18.76776234]
[1760779238376,8.35173007,186.53,186.49,18.76776234]
[1760779238967,8.35173007,186.53,186.49,19.48776234]
[1760779239166,7.64173007,186.53,186.49,19.48776234]
[1760779239369,3.11032672,186.53,186.49,19.48776234]
[1760779239758,3.11032672,186.54,186.5,1.25619302]
[1760779240882,3.11032672,186.53,186.51,5.3616428]
[1760779241785,3.11032672,186.52,186.51,5.3616428]
[1760779243184,3.11032672,186.52,186.49,18.76776234]
[1760779243357,3.11032672,186.52,186.49,19.48776234]
[1760779245058,3.11032672,186.52,186.51,5.3616428]
[1760779245384,3.11032672,186.53,186.51,5.3616428]
[1760779245983,0.72,186.55,186.51,5.3616428]
[1760779245984,3.11032672,186.52,186.51,5.3616428]
[1760779246375,3.11032672,186.52,186.5,5.36188678]
[1760779249178,3.11032672,186.52,186.5,6.08188678]
[1760779255193,0.72,186.57,186.51,0.72]
[1760779255490,3.11032672,186.53,186.51,0.72]
[1760779255870,3.11032672,186.52,186.5,18.76671251]
[1760779256074,3.11032672,186.52,186.5,19.48671251]
[1760779258003,3.11032672,186.52,186.5,6.08188678]
[1760779258299,3.11032672,186.51,186.48,5.36250536]
[1760779258674,3.11032672,186.51,186.49,0.72]
[1760779259496,0.72,186.54,186.49,0.72]
[1760779259497,3.11032672,186.52,186.49,0.72]
[1760779259985,3.11032672,186.53,186.49,0.40906849]
[1760779260186,3.11032672,186.53,186.5,0.72]
[1760779260390,3.11032672,186.53,186.51,5.3616428]
[1760779260887,3.11032672,186.52,186.51,5.3616428]
[1760779261092,0.72,186.54,186.51,5.3616428]
[1760779261291,3.11032672,186.52,186.51,5.3616428]
[1760779262115,3.11032672,186.52,186.46,0.72]
[1760779262116,3.83032672,186.52,186.46,0.72]
[1760779262284,3.11032672,186.48,186.47,5.36279049]
[1760779262893,3.11032672,186.48,186.44,0.72]
[1760779263186,3.11032672,186.45,186.44,5.36365586]
[1760779264192,3.11032672,186.45,186.43,5.36394357]
[1760779264387,3.11032672,186.46,186.43,6.08394357]
[1760779264791,3.11032672,186.45,186.43,6.08394357]
[1760779265206,3.11032672,186.46,186.43,6.06394357]
[1760779265409,3.11032672,186.44,186.43,5.36394357]
[1760779266105,3.11032672,186.44,186.42,18.77416398]
[1760779266603,3.11032672,186.43,186.42,5.3642313]
[1760779266909,3.11032672,186.43,186.4,5.36480686]
[1760779267209,3.11032672,186.41,186.4,5.36480686]
[1760779267413,1.99298591,186.41,186.4,5.36480686]
[1760779267710,1.99298591,186.42,186.4,5.36480686]
[1760779268414,1.99298591,186.43,186.4,6.08480686]
[1760779268710,1.99298591,186.43,186.41,0.72]
[1760779269114,0.7,186.46,186.4,80.77682402]
[1760779269115,1.99298591,186.44,186.42,0.72]
[1760779269504,22.88,186.51,186.43,0.72]
[1760779269704,1.99298591,186.48,186.43,0.72]
[1760779269904,1.99298591,186.48,186.44,5.36365586]
[1760779270117,1.99298591,186.48,186.45,0.72]
[1760779270298,2.69298591,186.48,186.44,5.36365586]
[1760779270502,1.99298591,186.47,186.44,6.08365586]
[1760779270809,1.99298591,186.45,186.44,5.36365586]
[1760779271806,1.99298591,186.46,186.44,5.36365586]
[1760779272005,1.99298591,186.46,186.43,18.7733652]
[1760779272405,1.99298591,186.44,186.43,5.36394357]
[1760779273220,1.99298591,186.48,186.43,6.08394357]
[1760779273432,1.99298591,186.5,186.45,1.99298591]
[1760779273724,1.99298591,186.5,186.46,0.72]
[1760779273901,1.99298591,186.5,186.47,0.72]
[1760779274101,1.99298591,186.5,186.48,5.36250536]
[1760779275216,1.99298591,186.49,186.48,5.36250536]
[1760779275595,1.99298591,186.51,186.48,5.36250536]
[1760779275912,1.99298591,186.51,186.48,6.08250536]
[1760779277017,1.99298591,186.5,186.48,6.08250536]
[1760779281619,1.99298591,186.5,186.48,5.36250536]
[1760779281808,1.99298591,186.49,186.48,5.36250536]
[1760779283211,1.99298591,186.49,186.47,5.36279294]
[1760779283522,1.99298591,186.48,186.47,6.08279294]
[1760779285026,0.7,186.52,186.47,6.08279294]
[1760779285223,1.99298591,186.48,186.47,5.36279294]
[1760779285403,1.99298591,186.48,186.46,75.40748876]
[1760779285404,1.99298591,186.48,186.46,67.36302598]
[1760779285604,22.88,186.52,186.46,67.36302598]
[1760779285605,1.99298591,186.47,186.46,6.08302598]
[1760779286611,0.7,186.51,186.46,6.08302598]
[1760779286908,22.88,186.52,186.46,6.08302598]
[1760779286909,1.99298591,186.47,186.46,6.08302598]
[1760779287427,0.7,186.5,186.46,6.08302598]
[1760779287428,1.99298591,186.48,186.46,6.08302598]
[1760779288228,22.88,186.53,186.47,0.72]
[1760779288405,1.99298591,186.49,186.47,0.72]
[1760779289320,0.7,186.52,186.48,5.36250536]
[1760779289521,1.99298591,186.49,186.47,5.36271539]
[1760779289725,1.99298591,186.48,186.47,5.36271539]
[1760779290707,1.99298591,186.48,186.46,5.36308055]
[1760779290918,1.99298591,186.47,186.46,6.08308055]
[1760779291535,1.99298591,186.47,186.46,5.36308055]
[1760779291728,1.99298591,186.47,186.46,6.08308055]
[1760779292916,1.99298591,186.47,186.44,14.12908292]
[1760779293116,1.99298591,186.46,186.45,0.72]
[1760779294235,1.99298591,186.46,186.45,6.08336819]
[1760779297714,2.69298591,186.46,186.45,5.36336819]
[1760779297914,1.99298591,186.46,186.45,5.36336819]
[1760779298841,1.99298591,186.46,186.44,5.36365586]
[1760779299038,1.99298591,186.45,186.44,5.36365586]
[1760779300416,23.59,186.5,186.44,0.68]
[1760779300621,1.99298591,186.5,186.45,1.99298591]
[1760779300929,1.99298591,186.53,186.48,1.99298591]
[1760779301117,1.99298591,186.52,186.49,0.68]
[1760779301638,1.99298591,186.52,186.5,0.68]
[1760779301838,1.99298591,186.52,186.47,1.99298591]
[1760779302043,1.99298591,186.54,186.51,5.3616428]
[1760779302543,2.70298591,186.55,186.51,5.3616428]
[1760779303220,2.70298591,186.55,186.51,0.68]
[1760779304042,1.99298591,186.53,186.5,5.36193029]
[1760779304221,1.99298591,186.52,186.5,5.36193029]
[1760779305339,2.70298591,186.53,186.49,5.36221781]
[1760779305536,2.70298591,186.53,186.49,6.04221781]
[1760779306043,1.99298591,186.51,186.49,5.36221781]
[1760779306236,1.99298591,186.52,186.49,5.36221781]
[1760779306440,2.70298591,186.52,186.49,5.36221781]
[1760779307223,2.70298591,186.52,186.48,6.04250536]
[1760779308650,7.97194364,186.57,186.46,5.36308055]
[1760779308651,1.99298591,186.49,186.46,5.36308055]
[1760779308820,1.99298591,186.5,186.46,6.04308055]
[1760779309018,2.70298591,186.5,186.46,6.04308055]
[1760779309234,1.99298591,186.49,186.46,6.04308055]
[1760779309646,1.99298591,186.49,186.46,5.36308055]
[1760779309647,1.99298591,186.47,186.46,5.36308055]
[1760779310348,1.99298591,186.47,186.43,18.77379042]
[1760779310536,1.99298591,186.49,186.46,0.68]
[1760779311535,1.99298591,186.5,186.46,0.68]
[1760779312027,1.99298591,186.49,186.44,6.04365586]
[1760779312239,1.99298591,186.49,186.45,0.68]
[1760779312821,2.70298591,186.49,186.45,0.68]
[1760779313330,39.013803,186.54,186.46,5.36308055]
[1760779313528,1.99298591,186.49,186.46,5.36308055]
[1760779313943,1.99298591,186.49,186.46,6.04308055]
[1760779314251,1.99298591,186.49,186.44,15.40212557]
[1760779314252,1.99298591,186.48,186.45,5.36332679]
[1760779314560,1.99298591,186.48,186.46,0.68]
[1760779314724,1.99298591,186.49,186.46,0.68]
[1760779315053,1.99298591,186.49,186.46,6.04294739]
[1760779316172,1.99298591,186.49,186.44,18.77279552]
[1760779316358,2.70298591,186.49,186.45,0.68]
[1760779316829,1.99298591,186.49,186.46,0.68]
[1760779317030,44.37465756,186.54,186.47,1.99298591]
[1760779317031,23.59,186.54,186.47,1.99298591]
[1760779317230,10.97647521,186.58,186.49,1.99298591]
[1760779317231,1.99298591,186.55,186.49,1.99298591]
[1760779317531,22.88,186.54,186.5,0.68]
[1760779317732,1.99298591,186.55,186.51,0.68]
[1760779318751,1.99298591,186.55,186.5,5.36193029]
[1760779319052,1.99298591,186.55,186.52,0.68]
[1760779320253,23.59,186.56,186.52,6.0412757]
[1760779320254,25.58298591,186.56,186.52,6.0412757]
[1760779320647,22.88,186.56,186.53,0.68]
[1760779320968,22.88,186.56,186.51,1.99298591]
[1760779320969,1.99298591,186.55,186.51,0.68]
[1760779321129,1.99298591,186.55,186.52,0.68]
[1760779321329,25.58298591,186.56,186.52,0.68]
[1760779322154,1.99298591,186.55,186.51,0.68]
[1760779322352,23.59,186.56,186.52,0.68]
[1760779322550,22.88,186.56,186.53,0.68]
[1760779322770,2.80298591,186.58,186.53,2.67298591]
[1760779322771,0.1,186.58,186.53,2.67298591]
[1760779323051,0.1,186.58,186.54,0.68]
[1760779323455,0.1,186.58,186.56,1.99298591]
[1760779323640,0.1,186.58,186.57,2.67298591]
[1760779324032,0.1,186.58,186.57,0.68]
[1760779324359,0.1,186.58,186.57,6.03991852]
[1760779324754,0.1,186.58,186.56,5.36016475]
[1760779325136,0.1,186.58,186.56,6.08016475]
[1760779325458,0.1,186.58,186.57,0.72]
[1760779326149,0.1,186.58,186.57,6.07991852]
[1760779326874,0.1,186.58,186.57,5.35991852]
[1760779327044,0.1,186.58,186.57,6.07991852]
[1760779328060,0.91,186.69,186.59,0.28432314]
[1760779328256,0.91,186.69,186.61,5.35876962]
[1760779328257,3.10767042,186.66,186.61,5.35876962]
[1760779328553,22.88,186.67,186.62,0.66]
[1760779328757,0.2,186.69,186.62,1.19584823]
[1760779329058,3.10767042,186.68,186.63,0.66]
[1760779329252,23.08,186.69,186.63,0.66]
[1760779329443,3.10767042,186.68,186.63,0.66]
[1760779330051,3.10767042,186.68,186.64,5.35790827]
[1760779330245,3.10767042,186.68,186.65,0.66]
[1760779330447,3.30767042,186.69,186.66,0.66]